bitfinex/quotes_BTCUSD_20250628
["timestamp","ask_amount","ask_price","bid_price","bid_amount"]
[1751083203429,0.01757311,107350.0,107340.0,10.785759]
[1751083203639,0.01757311,107350.0,107340.0,11.03557065]
[1751083203928,0.01757311,107350.0,107340.0,10.785759]
[1751083204424,0.01757311,107350.0,107340.0,10.53594735]
[1751083204626,0.01757311,107350.0,107340.0,10.785759]
[1751083212461,0.02688773,107350.0,107340.0,10.785759]
[1751083212693,0.02688773,107350.0,107340.0,10.53594735]
[1751083213231,0.03620227,107350.0,107340.0,10.53594735]
[1751083213589,0.30464448,107350.0,107340.0,10.12436008]
[1751083213811,0.72213326,107350.0,107340.0,10.20392]
[1751083214021,0.73743326,107350.0,107340.0,10.18792]
[1751083214903,0.73743326,107350.0,107340.0,10.0]
[1751083215142,0.73743326,107350.0,107340.0,10.1498]
[1751083215366,0.48762161,107350.0,107340.0,10.1498]
[1751083215937,0.58038169,107350.0,107340.0,10.1498]
[1751083216352,0.48762161,107350.0,107340.0,10.1498]
[1751083216559,0.73743326,107350.0,107340.0,10.1498]
[1751083216781,0.73743326,107350.0,107340.0,10.0]
[1751083216995,0.75253326,107350.0,107340.0,10.0]
[1751083220327,1.09253326,107350.0,107340.0,10.0]
[1751083220652,1.17476474,107350.0,107340.0,10.0]
[1751083221930,1.09253326,107350.0,107340.0,10.0]
[1751083225497,0.84272161,107350.0,107340.0,10.0]
[1751083226458,1.09253326,107350.0,107340.0,10.0]
[1751083231788,1.07743326,107350.0,107340.0,10.0]
[1751083235532,1.10515841,107350.0,107340.0,10.0]
[1751083235727,1.19791849,107350.0,107340.0,10.0]
[1751083245462,1.19591849,107350.0,107340.0,10.0]
[1751083245886,1.19891849,107350.0,107340.0,10.0]
[1751083246093,1.19491849,107350.0,107340.0,10.0]
[1751083246526,1.19891849,107350.0,107340.0,10.0]
[1751083246706,0.94910684,107350.0,107340.0,10.0]
[1751083246846,1.09894684,107350.0,107340.0,10.0]
[1751083247251,1.34875849,107350.0,107340.0,10.0]
[1751083247465,1.38328122,107350.0,107340.0,10.0]
[1751083251687,1.54987508,107350.0,107340.0,10.0]
[1751083251917,1.57223505,107350.0,107340.0,10.0]
[1751083253860,1.8220467,107350.0,107340.0,10.0]
[1751083254115,1.62223505,107350.0,107340.0,10.0]
[1751083257534,1.8720467,107350.0,107340.0,10.0]
[1751083257886,1.88658755,107350.0,107340.0,10.0]
[1751083258580,1.88358755,107350.0,107340.0,10.0]
[1751083258755,1.88858755,107350.0,107340.0,10.0]
[1751083259201,1.98665755,107350.0,107340.0,10.0]
[1751083259613,1.98265755,107350.0,107340.0,10.0]
[1751083260245,1.98965755,107350.0,107340.0,10.001]
[1751083261716,1.98964729,107350.0,107340.0,10.001]
[1751083262927,1.73983564,107350.0,107340.0,10.001]
[1751083265606,1.64176564,107350.0,107340.0,10.001]
[1751083265894,1.89157729,107350.0,107340.0,10.001]
[1751083276978,1.64176564,107350.0,107340.0,10.001]
[1751083277974,1.89157729,107350.0,107340.0,10.001]
[1751083279726,1.87647729,107350.0,107340.0,10.001]
[1751083281104,1.90439225,107350.0,107340.0,10.001]
[1751083285983,1.6545806,107350.0,107340.0,10.001]
[1751083293728,1.54652052,107350.0,107340.0,10.0165]
[1751083293937,1.48197967,107350.0,107340.0,10.032]
[1751083294153,1.53197967,107350.0,107340.0,10.032]
[1751083295691,1.48197967,107350.0,107340.0,10.032]
[1751083295894,1.53197967,107350.0,107340.0,10.032]
[1751083296041,1.38213967,107350.0,107340.0,10.032]
[1751083296245,1.58700886,107350.0,107340.0,10.032]
[1751083298661,1.53700886,107350.0,107340.0,10.032]
[1751083298820,1.58700886,107350.0,107340.0,10.032]
[1751083299239,1.53197967,107350.0,107340.0,10.032]
[1751083301331,1.35422471,107350.0,107340.0,10.032]
[1751083301539,1.50406471,107350.0,107340.0,10.032]
[1751083302569,1.50407556,107350.0,107340.0,10.032]
[1751083305307,1.45407556,107350.0,107340.0,10.032]
[1751083305512,1.59683564,107350.0,107340.0,10.032]
[1751083306091,1.50407556,107350.0,107340.0,10.032]
[1751083306294,1.45407556,107350.0,107340.0,10.032]
[1751083306473,1.50407556,107350.0,107340.0,10.032]
[1751083307349,1.45407556,107350.0,107340.0,10.032]
[1751083307554,1.50407556,107350.0,107340.0,10.032]
[1751083307726,1.59683564,107350.0,107340.0,10.032]
[1751083308866,1.54683564,107350.0,107340.0,10.032]
[1751083309077,1.50407556,107350.0,107340.0,10.032]
[1751083310000,0.72150383,107350.0,107340.0,10.032]
[1751083310635,1.06150383,107350.0,107340.0,10.032]
[1751083311263,1.03914386,107350.0,107340.0,10.22764002]
[1751083312234,0.88930386,107350.0,107340.0,10.22764002]
[1751083312447,1.03914386,107350.0,107340.0,10.22764002]
[1751083313432,1.03914386,107350.0,107340.0,10.23695612]
[1751083313801,1.03914386,107350.0,107340.0,10.22764002]
[1751083314050,1.03914386,107350.0,107340.0,10.23695612]
[1751083314423,0.88930386,107350.0,107340.0,10.23695612]
[1751083314650,0.99584676,107350.0,107340.0,10.24627213]
[1751083314809,0.99584676,107350.0,107340.0,10.23695612]
[1751083315010,0.99584676,107350.0,107340.0,10.22764002]
[1751083315209,0.99584676,107350.0,107340.0,10.21832383]
[1751083315753,0.99584676,107350.0,107340.0,10.23695612]
[1751083316370,0.99584676,107350.0,107340.0,10.22764002]
[1751083317143,0.99584676,107350.0,107340.0,10.23695612]
[1751083317412,0.74603511,107350.0,107340.0,10.23695612]
[1751083317614,0.99584676,107350.0,107340.0,10.24627213]
[1751083317819,0.99584676,107350.0,107340.0,10.40538771]
[1751083317820,0.65973977,107350.0,107340.0,10.40538771]
[1751083317950,0.65973977,107350.0,107340.0,10.41470338]
[1751083318154,0.64132977,107350.0,107340.0,10.41470286]
[1751083318634,0.63201462,107350.0,107340.0,10.41470286]
[1751083318820,0.38220297,107350.0,107340.0,10.41470286]
[1751083319022,0.63201462,107350.0,107340.0,10.41470286]
[1751083319224,0.64132985,107350.0,107340.0,10.40538728]
[1751083319623,0.64132985,107350.0,107340.0,10.40538736]
[1751083320200,0.64132985,107350.0,107340.0,10.39607161]
[1751083321090,0.64132985,107350.0,107340.0,10.40538736]
[1751083321867,0.65064517,107350.0,107340.0,10.40538736]
[1751083322687,0.67882044,107350.0,107340.0,10.39607161]
[1751083323905,0.65064517,107350.0,107340.0,10.39607161]
[1751083329528,0.65064517,107350.0,107340.0,10.38675577]
[1751083331244,0.64133037,107350.0,107340.0,10.38675577]
[1751083332043,0.82763684,107350.0,107340.0,10.37743984]
[1751083333965,0.82763684,107350.0,107340.0,10.38675577]
[1751083334556,0.82735737,107350.0,107340.0,10.38675577]
[1751083335314,0.82735737,107350.0,107340.0,10.39607161]
[1751083335521,0.82735737,107350.0,107340.0,10.38675577]
[1751083336337,0.82735737,107350.0,107340.0,10.37743984]
[1751083336543,0.82735737,107350.0,107340.0,10.38675577]
[1751083338004,0.82735737,107350.0,107340.0,10.37743984]
[1751083338591,0.82735737,107350.0,107340.0,10.38675577]
[1751083339424,0.82735737,107350.0,107340.0,10.37743984]
[1751083339935,0.81804231,107350.0,107340.0,10.37743984]
[1751083342108,0.81804231,107350.0,107340.0,10.37744002]
[1751083342332,0.80872708,107350.0,107340.0,10.37744002]
[1751083342532,0.80872708,107350.0,107340.0,10.38675612]
[1751083342931,0.80872708,107350.0,107340.0,10.37744002]
[1751083343159,0.80872708,107350.0,107340.0,10.39607213]
[1751083343519,0.80872708,107350.0,107340.0,10.40538806]
[1751083343713,0.80872708,107350.0,107340.0,10.39607213]
[1751083345771,0.80872708,107350.0,107340.0,10.40538806]
[1751083346805,0.61310529,107350.0,107340.0,10.40538806]
[1751083347019,0.39123847,107350.0,107340.0,10.40538762]
[1751083347233,0.65036466,107350.0,107340.0,10.41470329]
[1751083347767,0.64104951,107350.0,107340.0,10.41470329]
[1751083347976,0.65036457,107350.0,107340.0,10.40538719]
[1751083349574,0.65967972,107350.0,107340.0,10.39607152]
[1751083349798,0.65967972,107350.0,107340.0,10.40538719]
[1751083350316,0.02329364,107350.0,107340.0,10.50746285]
[1751083350526,0.03260818,107350.0,107340.0,10.50746285]
[1751083350745,0.27310529,107350.0,107340.0,10.50746285]
[1751083350886,0.02329364,107350.0,107340.0,10.50746285]
[1751083351288,0.02329364,107350.0,107340.0,10.7953545]
[1751083351467,0.01629364,107350.0,107340.0,10.7943545]
[1751083351675,0.01129364,107350.0,107340.0,10.7943545]
[1751083351871,0.01129364,107350.0,107340.0,10.55396365]
[1751083352076,0.01429364,107350.0,107340.0,10.55396365]
[1751083352482,0.01129364,107350.0,107340.0,10.55396365]
[1751083352682,0.01329364,107350.0,107340.0,10.55396365]
[1751083352880,0.01729364,107350.0,107340.0,10.55396365]
[1751083353140,0.01329364,107350.0,107340.0,10.55396365]
[1751083353487,0.01529364,107350.0,107340.0,10.55396365]
[1751083354949,0.01529364,107350.0,107340.0,10.54454285]
[1751083359798,0.26510529,107350.0,107340.0,10.54454285]
[1751083360527,0.26510529,107350.0,107340.0,10.54450285]
[1751083363683,0.01529364,107350.0,107340.0,10.54450285]
[1751083369810,0.01529364,107350.0,107340.0,10.7943145]
[1751083370559,0.01529364,107350.0,107340.0,10.54450285]
[1751083372896,0.01529364,107350.0,107340.0,10.7943145]
[1751083380263,0.01529364,107350.0,107340.0,10.54450285]
[1751083380488,0.01529364,107350.0,107340.0,10.7943145]
[1751083386690,0.01529364,107350.0,107340.0,10.54450285]
[1751083386920,0.01529364,107350.0,107340.0,10.7943145]
[1751083388173,0.01529364,107350.0,107340.0,10.54446285]
[1751083388782,0.26510529,107350.0,107340.0,10.54446285]
[1751083388985,0.01529364,107350.0,107340.0,10.54446285]
[1751083393206,0.01525354,107350.0,107340.0,10.54446285]
[1751083398315,0.01525354,107350.0,107340.0,10.7942745]
[1751083402157,0.01525354,107350.0,107340.0,10.54446285]
[1751083402376,0.01525354,107350.0,107340.0,10.7942745]
[1751083403722,0.01525354,107350.0,107340.0,10.7787745]
[1751083404818,0.01525354,107350.0,107340.0,10.7951745]
[1751083407818,0.01525354,107350.0,107340.0,10.52896285]
[1751083408022,0.01525354,107350.0,107340.0,10.7787745]
[1751083409195,0.01525354,107350.0,107340.0,10.52896285]
[1751083409405,0.01525354,107350.0,107340.0,10.7787745]
[1751083412693,0.02456808,107350.0,107340.0,10.7787745]
[1751083413203,0.02449594,107350.0,107340.0,10.7787745]
[1751083414270,0.03381048,107350.0,107340.0,10.7787745]
[1751083415719,0.02449594,107350.0,107340.0,10.7787745]
[1751083418104,0.30893693,107350.0,107340.0,10.50414727]
[1751083418532,0.29962213,107350.0,107340.0,10.50414727]
[1751083418809,0.05912519,107350.0,107340.0,10.50414727]
[1751083419026,0.30893684,107350.0,107340.0,10.50414727]
[1751083420111,0.05912519,107350.0,107340.0,10.50414727]
[1751083421599,0.30893684,107350.0,107340.0,10.50414727]
[1751083422686,0.29962213,107350.0,107340.0,10.50414727]
[1751083423582,0.04981048,107350.0,107340.0,10.50414727]
[1751083425556,0.03381048,107350.0,107340.0,10.50414727]
[1751083425975,0.03381048,107350.0,107340.0,10.31634727]
[1751083426194,0.03381048,107350.0,107340.0,10.50406727]
[1751083426636,0.03381048,107350.0,107340.0,10.52006727]
[1751083427717,0.03381048,107350.0,107340.0,10.76987892]
[1751083438120,0.04312519,107350.0,107340.0,10.76987892]
[1751083439715,0.03381048,107350.0,107340.0,10.76987892]
[1751083440111,0.03381048,107350.0,107340.0,10.52006727]
[1751083440319,0.03381048,107350.0,107340.0,10.76987892]
[1751083440760,0.04312519,107350.0,107340.0,10.52006727]
[1751083440998,0.04312519,107350.0,107340.0,10.76987892]
[1751083442475,0.03381048,107350.0,107340.0,10.76987892]
[1751083442635,0.03381048,107350.0,107340.0,10.75860917]
[1751083443437,0.0431251,107350.0,107340.0,10.75860917]
[1751083446012,0.03381048,107350.0,107340.0,10.75860917]
[1751083447287,0.0431251,107350.0,107340.0,10.75860917]
[1751083448389,0.0524399,107350.0,107340.0,10.75860917]
[1751083448602,0.05243981,107350.0,107340.0,10.75860917]
[1751083450094,0.0431251,107350.0,107340.0,10.75860917]
[1751083453253,0.03884643,107350.0,107340.0,10.75860917]
[1751083453607,0.02953181,107350.0,107340.0,10.75860917]
[1751083454704,0.03884652,107350.0,107340.0,10.75860917]
[1751083455695,0.03889239,107350.0,107340.0,10.75860917]
[1751083457479,0.02957768,107350.0,107340.0,10.75860917]
[1751083457677,0.03889239,107350.0,107340.0,10.75860917]
[1751083458371,0.03889239,107350.0,107340.0,10.50879752]
[1751083458586,0.03889239,107350.0,107340.0,10.75760917]
[1751083461183,0.02957768,107350.0,107340.0,10.75760917]
[1751083461842,0.03889239,107350.0,107340.0,10.75760917]
[1751083462639,0.02957768,107350.0,107340.0,10.75760917]
[1751083463242,0.03889239,107350.0,107340.0,10.75760917]
[1751083468114,0.01102074,107350.0,107340.0,10.75760917]
[1751083468340,0.01102074,107350.0,107340.0,10.77360917]
[1751083468542,0.02033536,107350.0,107340.0,10.77360917]
[1751083470263,0.02956189,107350.0,107340.0,10.77360917]
[1751083471720,0.02956189,107350.0,107340.0,10.75760917]
[1751083473054,0.32956189,107350.0,107340.0,10.75760917]
[1751083474131,0.31102074,107350.0,107340.0,10.77410917]
[1751083474326,0.32033536,107350.0,107340.0,10.77410917]
[1751083475386,0.32947136,107350.0,107340.0,10.77410917]
[1751083475887,0.32947136,107350.0,107340.0,10.75760917]
[1751083476829,0.32033536,107350.0,107340.0,10.75760917]
[1751083477853,0.32965007,107350.0,107340.0,10.75760917]
[1751083479025,0.32033536,107350.0,107340.0,10.75760917]
[1751083479239,0.32968508,107350.0,107340.0,10.75760917]
[1751083479782,0.33899988,107350.0,107340.0,10.75760917]
[1751083479965,0.32968508,107350.0,107340.0,10.75760917]
[1751083481852,0.33899979,107350.0,107340.0,10.75760917]
[1751083483092,0.32968508,107350.0,107340.0,10.75760917]
[1751083484438,0.32037046,107350.0,107340.0,10.75760917]
[1751083484657,0.32968508,107350.0,107340.0,10.75760917]
[1751083484918,0.329685,107350.0,107340.0,10.75760917]
[1751083485633,0.31102074,107350.0,107340.0,10.75760917]
[1751083485763,0.32033536,107350.0,107340.0,10.75760917]
[1751083485971,0.31102074,107350.0,107340.0,10.75760917]
[1751083486555,0.31102074,107350.0,107340.0,10.50779752]
[1751083486693,0.32033536,107350.0,107340.0,10.50779752]
[1751083486897,0.32033536,107350.0,107340.0,10.75760917]
[1751083488276,0.32975415,107350.0,107340.0,10.75760917]
[1751083488903,0.32043953,107350.0,107340.0,10.75760917]
[1751083489874,0.31102074,107350.0,107340.0,10.75760917]
[1751083491519,0.32033528,107350.0,107340.0,10.75760917]
[1751083491731,0.31102074,107350.0,107340.0,10.75760917]
[1751083492828,0.32044886,107350.0,107340.0,10.75760917]
[1751083495929,0.32976357,107350.0,107340.0,10.75760917]
[1751083496550,0.32976348,107350.0,107340.0,10.75760917]
[1751083499704,0.33907828,107350.0,107340.0,10.75760917]
[1751083500211,0.33907828,107350.0,107340.0,10.32007752]
[1751083500429,0.33907828,107350.0,107340.0,10.74256917]
[1751083500655,0.33907828,107350.0,107340.0,10.75906917]
[1751083502654,0.33907828,107350.0,107340.0,10.57138917]
[1751083502828,0.61683519,107350.0,107340.0,10.48344194]
[1751083503056,0.61683519,107350.0,107340.0,10.49275761]
[1751083503180,0.36702354,107350.0,107340.0,10.50207319]
[1751083503380,0.35770831,107350.0,107340.0,10.50207319]
[1751083503584,0.35770831,107350.0,107340.0,10.51857319]
[1751083504897,0.34839316,107350.0,107340.0,10.51857319]
[1751083505100,0.35770822,107350.0,107340.0,10.51857319]
[1751083507039,0.35770822,107350.0,107340.0,10.50207319]
[1751083507656,0.35770822,107350.0,107340.0,10.51857319]
[1751083509271,0.34839316,107350.0,107340.0,10.51857319]
[1751083509675,0.35770813,107350.0,107340.0,10.51857319]
[1751083511371,0.34839316,107350.0,107340.0,10.76838484]
[1751083512678,0.34839316,107350.0,107340.0,10.51857319]
[1751083513363,0.35770813,107350.0,107340.0,10.50207319]
[1751083513489,0.38252319,107350.0,107340.0,10.50207319]
[1751083513900,0.38252319,107350.0,107340.0,9.98873025]
[1751083513901,0.80729719,107350.0,107340.0,9.98873025]
[1751083514103,0.80729719,107350.0,107340.0,10.13837025]
[1751083514710,1.14729719,107350.0,107340.0,10.13837025]
[1751083515165,1.17527119,107350.0,107340.0,10.13837025]
[1751083516207,1.32491119,107350.0,107340.0,9.98873025]
[1751083516382,1.3579766,107350.0,107340.0,9.98873025]
[1751083517871,1.32491119,107350.0,107340.0,9.98873025]
[1751083521435,1.3527725,107350.0,107340.0,9.98873025]
[1751083522228,1.0527725,107350.0,107340.0,9.98873025]
[1751083523269,1.30258415,107350.0,107340.0,9.98873025]
[1751083523677,1.0527725,107350.0,107340.0,9.98873025]
[1751083524060,1.35388642,107350.0,107340.0,9.98873025]
[1751083524274,1.0527725,107350.0,107340.0,9.98873025]
[1751083524452,1.0487725,107350.0,107340.0,9.98873025]
[1751083524652,1.0557725,107350.0,107340.0,9.98973025]
[1751083524857,1.0527725,107350.0,107340.0,9.98873025]
[1751083525246,1.0527725,107350.0,107340.0,9.98973025]
[1751083525247,1.0577725,107350.0,107340.0,9.98973025]
[1751083525454,1.0577725,107350.0,107340.0,9.98873025]
[1751083525704,1.0637725,107350.0,107340.0,9.98873025]
[1751083526012,1.0737725,107350.0,107340.0,9.98973025]
[1751083530139,1.32358415,107350.0,107340.0,9.98973025]
[1751083532732,1.0737725,107350.0,107340.0,9.98973025]
[1751083533838,1.32358415,107350.0,107340.0,9.98973025]
[1751083538024,1.0737725,107350.0,107340.0,9.98973025]
[1751083541899,1.0571725,107350.0,107340.0,9.98973025]
[1751083543291,1.06589779,107350.0,107340.0,9.98973025]
[1751083544200,1.07244216,107350.0,107340.0,9.98973025]
[1751083546550,1.32225381,107350.0,107340.0,9.98973025]
[1751083562991,1.32315381,107350.0,107340.0,9.98973025]
[1751083563837,1.4071886,107350.0,107340.0,9.98973025]
[1751083565636,1.48905518,107350.0,107340.0,9.98973025]
[1751083566651,1.4071886,107350.0,107340.0,9.98973025]
[1751083570570,1.4066886,107350.0,107340.0,9.98973025]
[1751083572833,1.40014423,107350.0,107340.0,9.98973025]
[1751083573635,1.4066938,107350.0,107340.0,9.98973025]
[1751083574444,1.4154266,107350.0,107340.0,9.98973025]
[1751083576187,1.3995266,107350.0,107340.0,9.98973025]
[1751083576388,1.3995266,107350.0,107340.0,10.00603025]
[1751083579446,1.42188339,107350.0,107340.0,10.00603025]
[1751083587483,1.51464347,107350.0,107340.0,10.00603025]
[1751083588095,1.42188339,107350.0,107340.0,10.00603025]
[1751083602711,1.42188446,107350.0,107340.0,10.00603025]
[1751083625987,1.42188446,107350.0,107340.0,9.98973025]
[1751083625988,1.48738446,107350.0,107340.0,9.98973025]
[1751083626188,7.11782531,107350.0,107340.0,9.98973025]
[1751083627890,7.15582531,107350.0,107340.0,9.98973025]
[1751083628092,7.24858539,107350.0,107340.0,9.98973025]
[1751083628936,7.49839704,107350.0,107340.0,9.98973025]
[1751083629342,7.52634076,107350.0,107340.0,9.98973025]
[1751083630982,7.27652911,107350.0,107340.0,9.98973025]
[1751083632235,7.52634076,107350.0,107340.0,9.98973025]
[1751083632848,7.27652911,107350.0,107340.0,9.98973025]
[1751083633048,7.52634076,107350.0,107340.0,9.98973025]
[1751083634270,7.49839704,107350.0,107340.0,9.98973025]
[1751083634476,7.49839704,107350.0,107340.0,9.96444025]
[1751083634678,7.49839704,107350.0,107340.0,9.94194025]
[1751083636267,7.49184747,107350.0,107340.0,9.94194025]
[1751083636527,7.49838611,107350.0,107340.0,9.94194025]
[1751083636731,1.94838611,107350.0,107340.0,9.94194025]
[1751083636896,7.49838611,107350.0,107340.0,9.94194025]
[1751083639164,7.52632983,107350.0,107340.0,9.94194025]
[1751083647903,1.22689488,107350.0,107340.0,9.94194025]
[1751083648113,7.27651818,107350.0,107340.0,9.94194025]
[1751083648560,7.27651818,107350.0,107340.0,9.90431026]
[1751083649591,7.26778431,107350.0,107340.0,9.90431026]
[1751083649958,7.26778431,107350.0,107340.0,9.88338026]
[1751083650584,7.25188431,107350.0,107340.0,9.88338026]
[1751083650995,7.25188431,107350.0,107340.0,9.84623596]
[1751083651377,7.51779596,107350.0,107340.0,9.82470496]
[1751083652008,7.51179596,107350.0,107340.0,9.82470496]
[1751083652228,7.49279596,107350.0,107340.0,9.82370496]
[1751083652362,7.49279596,107350.0,107340.0,9.82470496]
[1751083652567,7.50379596,107350.0,107340.0,9.82470496]
[1751083654095,7.50979596,107350.0,107340.0,9.82570496]
[1751083655222,7.54702988,107350.0,107340.0,9.82570496]
[1751083658397,7.53092988,107350.0,107340.0,9.82570496]
[1751083666861,7.53094037,107350.0,107340.0,9.82570496]
[1751083667403,7.48749665,107350.0,107340.0,9.82570496]
[1751083667798,7.50329665,107350.0,107340.0,9.82570496]
[1751083670469,7.31565665,107350.0,107340.0,9.82570496]
[1751083670695,7.50321665,107350.0,107340.0,9.82570496]
[1751083671315,7.48741665,107350.0,107340.0,9.84160496]
[1751083671547,7.48741665,107350.0,107340.0,9.82570496]
[1751083671769,7.50321665,107350.0,107340.0,9.82570496]
[1751083676239,1.95321665,107350.0,107340.0,9.82570496]
[1751083676445,7.48741665,107350.0,107340.0,9.82570496]
[1751083679274,1.93741665,107350.0,107340.0,9.82570496]
[1751083679678,7.48741665,107350.0,107340.0,9.82570496]
[1751083680293,7.48741665,107350.0,107340.0,9.84070496]
[1751083690188,7.48741665,107350.0,107340.0,9.82570496]
[1751083690420,0.90766162,107350.0,107340.0,9.85630496]
[1751083690651,0.48981123,107350.0,107340.0,9.85630496]
[1751083690875,0.70238896,107350.0,107340.0,9.85630496]
[1751083691091,0.58176757,107350.0,107340.0,10.00682496]
[1751083691545,0.55381307,107350.0,107340.0,10.19314879]
[1751083691773,0.29468636,107350.0,107340.0,10.01614115]
[1751083692002,0.34514963,107350.0,107340.0,10.22109675]
[1751083692240,0.5254561,107350.0,107340.0,10.21078091]
[1751083692450,0.53149801,107350.0,107340.0,10.20046498]
[1751083692663,0.51314122,107350.0,107340.0,10.21078108]
[1751083693309,0.50659209,107350.0,107340.0,10.21078108]
[1751083693946,0.50659209,107350.0,107340.0,10.00582496]
[1751083694160,0.49727694,107350.0,107340.0,10.00582496]
[1751083694387,0.48854098,107350.0,107340.0,10.00582496]
[1751083695678,0.53167376,107350.0,107340.0,10.00582496]
[1751083696551,0.48854098,107350.0,107340.0,10.00582496]
[1751083700047,0.48854098,107350.0,107340.0,10.00602496]
[1751083713596,0.48854098,107350.0,107340.0,9.85530496]
[1751083713800,0.48854098,107350.0,107340.0,10.00590496]
[1751083714521,0.73835263,107350.0,107340.0,9.85530496]
[1751083714737,0.48854098,107350.0,107340.0,9.85530496]
[1751083715207,0.73835263,107350.0,107340.0,9.85530496]
[1751083715642,0.83111271,107350.0,107340.0,9.85530496]
[1751083716853,0.33148941,107350.0,107340.0,9.85530496]
[1751083717006,0.48854098,107350.0,107340.0,9.85530496]
[1751083717208,1.17111271,107350.0,107340.0,9.82470496]
[1751083717437,1.19602801,107350.0,107340.0,9.82470496]
[1751083719666,1.22436587,107350.0,107340.0,9.82470496]
[1751083721327,1.24670456,107350.0,107340.0,9.82470496]
[1751083721570,1.31712595,107350.0,107340.0,9.82470496]
[1751083721779,1.33946336,107350.0,107340.0,9.82470496]
[1751083723176,1.23050328,107350.0,107340.0,9.84030496]
[1751083723975,1.23051393,107350.0,107340.0,9.84030496]
[1751083724317,1.23051366,107350.0,107340.0,9.84030496]
[1751083724522,1.20817625,107350.0,107340.0,9.84030496]
[1751083727754,1.35873625,107350.0,107340.0,9.84030496]
[1751083728598,1.45149633,107350.0,107340.0,9.84030496]
[1751083732994,1.35873625,107350.0,107340.0,9.84030496]
[1751083738436,1.35873625,107350.0,107340.0,9.82470496]
[1751083738652,1.37403625,107350.0,107340.0,9.82470496]
[1751083739286,1.35873625,107350.0,107340.0,9.82470496]
[1751083740119,1.37403625,107350.0,107340.0,9.82470496]
[1751083740749,1.46679633,107350.0,107340.0,9.82470496]
[1751083740952,1.45149633,107350.0,107340.0,9.82470496]
[1751083741191,1.46679633,107350.0,107340.0,9.82470496]
[1751083741622,1.48913333,107350.0,107340.0,9.82470496]
[1751083743131,1.49567755,107350.0,107340.0,9.82470496]
[1751083743774,1.48037755,107350.0,107340.0,9.82470496]
[1751083749490,1.49597755,107350.0,107340.0,9.82470496]
[1751083752398,1.48037755,107350.0,107340.0,9.82470496]
[1751083752606,1.48037755,107350.0,107340.0,9.84050496]
[1751083754171,1.387338,107350.0,107340.0,9.84050496]
[1751083757449,1.13752635,107350.0,107340.0,9.84050496]
[1751083758905,1.13752635,107350.0,107340.0,9.82470496]
[1751083759062,1.402838,107350.0,107340.0,9.82470496]
[1751083759631,1.07835879,107350.0,107340.0,9.82470496]
[1751083759835,1.29264326,107350.0,107340.0,9.82470496]
[1751083761035,1.35718411,107350.0,107340.0,9.82470496]
[1751083764786,1.3666427,107350.0,107340.0,9.82470496]
[1751083772267,1.39251624,107350.0,107340.0,9.82470496]
[1751083772481,1.3666427,107350.0,107340.0,9.82470496]
[1751083775125,1.3511427,107350.0,107340.0,9.84120496]
[1751083783213,1.3288057,107350.0,107340.0,9.84120496]
[1751083783761,1.35115996,107350.0,107340.0,9.84120496]
[1751083784517,1.35116677,107350.0,107340.0,9.84120496]
[1751083785370,1.32881251,107350.0,107340.0,9.84120496]
[1751083785871,1.35116793,107350.0,107340.0,9.84120496]
[1751083790341,1.36646793,107350.0,107340.0,9.82470496]
[1751083791658,1.45922801,107350.0,107340.0,9.82470496]
[1751083792725,1.36646793,107350.0,107340.0,9.82470496]
[1751083794045,1.45478793,107350.0,107340.0,9.82470496]
[1751083797922,1.43948793,107350.0,107340.0,9.82470496]
[1751083803235,1.4674322,107350.0,107340.0,9.82470496]
[1751083803939,1.4674322,107350.0,107340.0,9.84110496]
[1751083807334,1.50961616,107350.0,107340.0,9.84110496]
[1751083809031,1.4674322,107350.0,107340.0,9.84110496]
[1751083816131,1.46088798,107350.0,107340.0,9.84110496]
[1751083818779,1.46743753,107350.0,107340.0,9.84110496]
[1751083835319,1.46743891,107350.0,107340.0,9.84110496]
[1751083844146,1.42911891,107350.0,107340.0,9.84110496]
[1751083848992,1.46735891,107350.0,107340.0,9.84110496]
[1751083850989,1.46735891,107350.0,107340.0,9.85770496]
[1751083852081,1.27855891,107350.0,107340.0,9.85770496]
[1751083852305,1.42855891,107350.0,107340.0,9.85770496]
[1751083855928,1.42855863,107350.0,107340.0,9.85770496]
[1751083856782,1.37855863,107350.0,107340.0,9.85770496]
[1751083856985,1.42855863,107350.0,107340.0,9.85770496]
[1751083857659,1.37855863,107350.0,107340.0,9.85770496]
[1751083857851,1.42855863,107350.0,107340.0,9.85770496]
[1751083860784,1.37855863,107350.0,107340.0,9.85770496]
[1751083866792,1.3785616,107350.0,107340.0,9.85770496]
[1751083880227,1.3785616,107350.0,107340.0,9.84110496]
[1751083905057,1.37856103,107350.0,107340.0,9.84110496]
[1751083944881,1.39376103,107350.0,107340.0,9.82470496]
[1751083952005,1.64357268,107350.0,107340.0,9.82470496]
[1751083952232,7.19357268,107350.0,107340.0,9.82470496]
[1751083952649,7.25183274,107350.0,107340.0,9.80333497]
[1751083952824,7.25183274,107350.0,107340.0,9.79260497]
[1751083953045,7.25683274,107350.0,107340.0,9.79360497]
[1751083953176,7.29409177,107350.0,107340.0,9.79360497]
[1751083953596,7.25683274,107350.0,107340.0,9.75269497]
[1751083953801,7.25683274,107350.0,107340.0,9.73922497]
[1751083954003,7.26083274,107350.0,107340.0,9.72725497]
[1751083954247,7.26083274,107350.0,107340.0,9.71387497]
[1751083954461,7.26083274,107350.0,107340.0,9.69640497]
[1751083954852,7.26083274,107350.0,107340.0,9.68866497]
[1751083955048,7.26083274,107350.0,107340.0,9.68025497]
[1751083955252,7.26083274,107350.0,107340.0,9.65790497]
[1751083956478,7.21857268,107350.0,107340.0,9.65790497]
[1751083956806,7.26857268,107350.0,107340.0,9.33637342]
[1751083957057,7.26857268,107350.0,107340.0,9.29380342]
[1751083957675,7.26457268,107350.0,107340.0,9.24721286]
[1751083957905,7.26957268,107350.0,107340.0,9.23917286]
[1751083958116,7.33957268,107350.0,107340.0,9.23917286]
[1751083958302,7.33457268,107350.0,107340.0,9.23917286]
[1751083958495,7.42233276,107350.0,107340.0,9.23817286]
[1751083958698,7.42933276,107350.0,107340.0,9.23917286]
[1751083958901,7.43433276,107350.0,107340.0,9.24017286]
[1751083962587,1.88433276,107350.0,107340.0,9.20626286]
[1751083962797,7.43433276,107350.0,107340.0,9.20626286]
[1751083964103,7.4255973,107350.0,107340.0,9.20626286]
[1751083966535,7.7614383,107350.0,107340.0,8.88473131]
[1751083966745,7.51162665,107350.0,107340.0,8.88473131]
[1751083967144,7.51162665,107350.0,107340.0,8.79154333]
[1751083967345,7.36162665,107350.0,107340.0,8.74494934]
[1751083967551,7.36162665,107350.0,107340.0,8.69835535]
[1751083967552,7.45690657,107350.0,107340.0,8.69835535]
[1751083967750,7.45690657,107350.0,107340.0,8.60516737]
[1751083968122,7.45690657,107350.0,107340.0,8.51197939]
[1751083968453,7.45690657,107350.0,107340.0,8.41879141]
[1751083968657,7.54966665,107350.0,107340.0,8.37219742]
[1751083969029,7.54966665,107350.0,107340.0,8.27900944]
[1751083969245,7.54966665,107350.0,107340.0,8.23241545]
[1751083969460,6.98785492,107350.0,107340.0,8.18582146]